bitfinex/quotes_ETHUSD_20250319
["timestamp","ask_amount","ask_price","bid_price","bid_amount"]
[1742400038125,0.55,2052.2,2051.9,4.87353]
[1742400038444,10.68586757,2052.2,2051.9,4.87353]
[1742400038615,5.81304757,2052.2,2051.9,4.87353]
[1742400039040,4.87311,2052.1,2051.7,4.87384]
[1742400039246,5.42341,2052.0,2051.6,4.87422]
[1742400039545,0.55,2051.8,2051.6,4.87422]
[1742400039838,0.55,2051.8,2051.6,4.87409]
[1742400040224,0.55,2051.8,2051.5,6.196344]
[1742400040535,0.55,2051.8,2051.5,2.60172203]
[1742400040734,0.55,2051.8,2051.7,4.874]
[1742400041100,0.55,2051.8,2051.7,4.824]
[1742400041973,16.839,2052.4,2052.3,4.87258]
[1742400042147,22.078,2052.4,2052.3,4.87258]
[1742400042760,1.99785076,2052.8,2052.3,0.7925]
[1742400043070,10.13883757,2052.9,2052.5,4.87197]
[1742400043219,5.239,2052.8,2052.5,4.87197]
[1742400043415,10.11048,2052.8,2052.4,4.87233]
[1742400043656,2.02493176,2052.7,2052.4,4.87233]
[1742400043860,0.55,2052.6,2052.4,4.87217]
[1742400044158,0.55,2052.6,2052.5,4.8721]
[1742400044355,0.55,2052.7,2052.6,4.87186]
[1742400044523,0.8183,2052.9,2052.7,4.8715]
[1742400044725,5.239,2052.8,2052.7,4.8715]
[1742400045149,5.239,2052.8,2052.5,4.87209]
[1742400045324,5.239,2052.8,2052.3,4.87245]
[1742400045325,0.55,2052.6,2052.3,4.87245]
[1742400045525,0.55,2052.6,2052.1,5.66533]
[1742400045526,0.55,2052.4,2052.1,4.873]
[1742400045734,0.55,2052.2,2052.1,4.87291]
[1742400046324,0.55,2052.3,2052.2,4.87281]
[1742400047143,0.55,2052.3,2052.1,4.87304]
[1742400047347,0.55,2052.3,2052.1,4.87288]
[1742400047668,9.87200757,2052.3,2052.0,4.87328]
[1742400047962,2.62986276,2052.3,2052.0,9.74639]
[1742400048367,0.55,2052.3,2052.0,9.74639]
[1742400048568,0.55,2052.3,2052.2,4.87281]
[1742400048927,0.55,2052.3,2052.1,4.87295]
[1742400049127,1.35270137,2053.2,2052.0,0.7959]
[1742400049347,4.87096,2053.0,2052.6,4.87177]
[1742400049532,0.487096,2052.9,2052.5,4.87209]
[1742400049760,0.487096,2052.9,2052.6,4.87167]
[1742400049965,5.726096,2052.9,2052.6,4.87167]
[1742400050270,5.726096,2052.9,2052.7,4.87161]
[1742400050426,5.726096,2052.9,2052.7,9.74313]
[1742400050631,5.726096,2052.9,2052.8,4.87139]
[1742400050844,6.276096,2052.9,2052.8,4.87139]
[1742400051470,6.276096,2052.9,2052.7,4.87143]
[1742400051768,6.276096,2052.9,2052.8,4.87139]
[1742400051965,0.55,2052.9,2052.8,4.87139]
[1742400052170,5.789,2052.9,2052.6,4.87179]
[1742400052374,1.3799,2052.8,2052.5,4.87203]
[1742400052540,10.70065757,2052.8,2052.4,4.87231]
[1742400052743,0.55,2052.6,2052.3,4.87251]
[1742400053337,6.97913676,2052.6,2052.1,5.65432]
[1742400053537,10.11011,2052.5,2052.2,4.87273]
[1742400053973,10.11011,2052.5,2052.1,4.87296]
[1742400054480,6.22398,2052.4,2052.1,4.87296]
[1742400054683,0.55,2052.2,2052.0,4.8732]
[1742400054841,5.238,2052.1,2051.8,4.87368]
[1742400055371,5.238,2052.1,2051.8,9.74728]
[1742400055571,5.78794757,2052.0,2051.7,4.87387]
[1742400055873,1.3386,2052.0,2051.8,4.87372]
[1742400056376,6.21201,2052.0,2051.6,4.87419]
[1742400056550,0.55,2051.8,2051.6,4.87419]
[1742400056751,0.55,2051.8,2051.5,6.196294]
[1742400056987,0.55,2051.8,2051.6,4.87423]
[1742400057191,4.99934757,2051.8,2051.5,1.322004]
[1742400057413,10.65038757,2051.6,2051.5,1.322004]
[1742400058217,14.0147123,2051.6,2051.5,1.322004]
[1742400059521,14.0147123,2051.6,2051.5,0.74193585]
[1742400059706,0.7932,2051.0,2050.7,0.1206016]
[1742400059882,5.788,2050.9,2050.8,4.87614]
[1742400060084,0.55,2050.9,2050.8,4.87614]
[1742400060314,0.55,2050.9,2050.7,4.9968716]
[1742400060729,0.55,2050.9,2050.7,0.1206016]
[1742400061019,2.06127976,2050.9,2050.7,0.1206016]
[1742400061418,2.06127976,2050.9,2050.7,1.6e-06]
[1742400061419,10.67778757,2050.8,2050.7,1.6e-06]
[1742400061624,6.22844,2050.8,2050.7,1.6e-06]
[1742400061918,6.5913,2050.8,2050.7,1.6e-06]
[1742400062120,5.789,2050.8,2050.7,1.6e-06]
[1742400062321,10.23834757,2050.8,2050.7,1.6e-06]
[1742400062477,18.5404773,2050.8,2050.7,1.6e-06]
[1742400063008,22.70225718,2050.8,2050.7,1.6e-06]
[1742400063818,19.3319773,2050.8,2050.7,1.6e-06]
[1742400064028,9.68834757,2050.8,2050.7,1.6e-06]
[1742400064522,14.56448757,2050.8,2050.7,1.6e-06]
[1742400064830,15.11448757,2050.8,2050.7,1.6e-06]
[1742400067017,15.91178757,2050.8,2050.7,1.6e-06]
[1742400067386,11.03564757,2050.8,2050.7,1.6e-06]
[1742400067919,14.31182333,2050.8,2050.7,1.6e-06]
[1742400068218,19.18796333,2050.8,2050.7,1.6e-06]
[1742400068922,13.51452333,2050.8,2050.7,1.6e-06]
[1742400069422,18.39066333,2050.8,2050.7,1.6e-06]
[1742400069918,19.20246333,2050.8,2050.7,1.6e-06]
[1742400070511,22.20246333,2050.8,2050.7,1.6e-06]
[1742400070884,3.0,2050.5,2049.2,0.7739]
[1742400071084,0.55,2050.7,2049.3,4.87971]
[1742400071085,4.87791,2050.1,2049.3,4.87971]
[1742400071285,10.66913,2050.0,2049.6,9.75783]
[1742400071586,9.32819757,2049.7,2049.4,4.87945]
[1742400071824,0.55,2049.8,2049.4,4.87945]
[1742400072117,0.55,2049.8,2049.4,4.87933]
[1742400072316,0.55,2049.9,2049.5,4.87903]
[1742400072516,5.42841,2049.9,2049.5,4.87903]
[1742400072721,5.42884,2049.7,2049.3,4.8797]
[1742400072930,5.42884,2049.7,2049.2,5.65384]
[1742400072931,0.55,2049.5,2049.2,0.7739]
[1742400073227,12.14702633,2049.8,2049.3,4.87971]
[1742400073424,4.879,2049.6,2049.2,5.65376]
[1742400073625,0.55,2049.4,2049.2,0.7739]
[1742400073926,0.55,2049.4,2048.9,5.65954]
[1742400073927,4.44934757,2049.3,2048.9,5.65954]
[1742400074104,4.44934757,2049.3,2049.0,4.88039]
[1742400074306,0.55,2049.1,2048.9,5.65976]
[1742400074629,0.55,2049.1,2049.0,4.88042]
[1742400074793,5.241,2049.5,2049.3,4.87961]
[1742400074988,5.241,2049.5,2049.3,4.8796]
[1742400075195,5.242,2049.7,2049.1,0.7608]
[1742400075396,5.242,2049.7,2049.5,4.87909]
[1742400075630,16.857,2050.1,2049.6,0.8186]
[1742400075826,21.73493,2050.1,2049.7,4.87859]
[1742400076207,21.73493,2050.1,2049.6,5.69741]
[1742400076404,5.242,2050.0,2049.9,4.87828]
[1742400076817,5.792,2050.0,2049.9,4.87828]
[1742400077021,0.55,2049.9,2049.8,4.87852]
[1742400078136,16.857,2050.1,2050.0,5.69414]
[1742400078291,0.36904604,2050.7,2050.5,4.87678]
[1742400078492,1.22115922,2050.7,2050.4,4.87703]
[1742400078830,1.22115922,2050.7,2050.4,4.87699]
[1742400079128,0.85211318,2050.7,2050.5,4.8767]
[1742400079334,5.242,2050.8,2050.6,4.87649]
[1742400079546,0.7957,2051.2,2050.9,4.87582]
[1742400079747,5.242,2051.1,2050.9,4.87582]
[1742400080250,5.242,2051.1,2050.6,5.70854]
[1742400080251,10.11779,2051.0,2050.6,5.70854]
[1742400080413,5.242,2051.0,2050.8,4.87611]
[1742400080612,5.242,2051.0,2050.9,4.8759]
[1742400080808,5.242,2051.0,2050.8,4.87595]
[1742400081033,0.55,2050.8,2050.6,4.87653]
[1742400081232,0.55,2050.8,2050.5,4.87671]
[1742400081510,5.42592,2050.9,2050.5,4.87671]
[1742400081951,5.42592,2050.9,2050.5,9.7534]
[1742400082152,11.93493933,2050.9,2050.5,9.75341]
[1742400082355,7.05901933,2050.9,2050.6,4.8766]
[1742400082665,0.55,2050.9,2050.8,4.87614]
[1742400083558,4.87368,2051.9,2050.7,4.87638]
[1742400083559,5.242,2051.6,2051.0,4.87547]
[1742400083758,4.87452,2051.5,2051.1,4.87534]
[1742400083958,4.87506,2051.3,2051.0,4.87566]
[1742400084161,25.37027276,2051.4,2051.0,4.87566]
[1742400084362,30.24520276,2051.4,2050.9,5.63136]
[1742400084563,0.55,2051.3,2051.0,4.87563]
[1742400084969,0.55,2051.3,2050.9,4.87576]
[1742400085129,0.55,2051.1,2051.0,4.87567]
[1742400085326,16.861,2052.0,2051.2,0.7779]
[1742400085661,10.51328,2051.6,2051.2,4.87509]
[1742400085828,0.55,2051.5,2050.9,0.8192]
[1742400086028,5.241,2051.6,2051.3,0.8192]
[1742400086228,0.55,2051.5,2051.2,4.87498]
[1742400086465,5.42451,2051.5,2051.1,0.8192]
[1742400086668,0.55,2051.3,2051.1,4.87536]
[1742400086865,0.55,2051.4,2051.0,4.87552]
[1742400087097,2.06148876,2051.4,2051.1,4.87529]
[1742400087259,6.93624876,2051.4,2051.0,4.87552]
[1742400087455,0.55,2051.1,2050.9,0.7551]
[1742400087659,0.55,2051.1,2050.8,4.87595]
[1742400087986,0.55,2051.1,2050.5,3.0]
[1742400087987,0.55,2050.9,2050.6,4.87657]
[1742400088155,0.55,2050.7,2050.4,5.66467]
[1742400088355,0.55,2050.7,2050.6,4.87662]
[1742400088960,6.0,2051.0,2050.8,4.87614]
[1742400089161,0.55,2050.9,2050.8,4.87614]
[1742400089357,0.55,2051.0,2050.9,4.8759]
[1742400089562,16.859,2051.2,2051.0,4.87567]
[1742400089784,16.859,2051.2,2051.1,4.87543]
[1742400089984,19.82004888,2051.2,2051.0,4.87567]
[1742400090193,0.55,2051.1,2050.7,4.8762]
[1742400090376,10.66551,2051.1,2050.7,4.8762]
[1742400090572,10.66551,2051.1,2050.7,9.75243]
[1742400090774,10.66551,2051.1,2050.7,4.8762]
[1742400090998,0.55,2050.9,2050.4,6.8108]
[1742400091193,0.61095568,2050.9,2050.4,5.69786]
[1742400091367,0.55,2050.7,2050.4,5.69778]
[1742400091559,0.55,2050.8,2050.5,4.87682]
[1742400091761,5.42619,2050.8,2050.5,4.87682]
[1742400091955,6.71515076,2050.7,2050.4,10.57475]
[1742400092160,6.71515076,2050.7,2050.5,4.87679]
[1742400092562,6.71515076,2050.7,2050.6,4.87662]
[1742400092759,7.26515076,2050.7,2050.6,4.87662]
[1742400092964,3.04855589,2051.0,2050.7,4.87617]
[1742400093163,8.28855589,2051.0,2050.9,4.8759]
[1742400093673,16.859,2051.2,2051.0,4.8755]
[1742400093999,16.859,2051.2,2051.1,4.87543]
[1742400094579,17.409,2051.2,2051.1,4.87543]
[1742400094990,0.55,2051.1,2050.9,4.87581]
[1742400095203,5.81234757,2051.1,2050.5,0.8083]
[1742400095388,5.42622,2050.8,2050.4,4.877]
[1742400095592,0.55,2050.6,2050.4,4.87695]
[1742400096119,0.55,2050.6,2050.3,4.87731]
[1742400096274,0.55,2050.4,2050.1,4.87765]
[1742400096480,0.55,2050.4,2050.2,4.87747]
[1742400096704,1.580347,2050.4,2050.1,4.87779]
[1742400096892,1.580347,2050.4,2050.3,4.87733]
[1742400097298,0.55,2050.6,2050.0,6.8103]
[1742400097607,0.55,2050.6,2049.9,4.87825]
[1742400097608,8.26563476,2051.0,2050.8,4.87613]
[1742400097775,0.55,2050.9,2050.8,4.87601]
[1742400098292,7.50713476,2051.0,2050.8,4.87594]
[1742400098464,7.50713476,2051.0,2050.7,4.87636]
[1742400098667,0.55,2050.8,2050.5,4.87685]
[1742400098873,0.55,2050.8,2050.4,6.8569]
[1742400099078,0.55,2050.8,2050.5,4.87665]
[1742400099296,0.55,2050.8,2050.5,9.75335]
[1742400099599,2.85088658,2050.8,2050.5,4.87665]
[1742400099802,7.72703658,2050.8,2050.4,0.8069]
[1742400099969,2.85088658,2050.8,2050.5,4.87683]
[1742400100302,2.85088658,2050.8,2050.5,9.75354]
[1742400100502,2.85088658,2050.8,2050.4,5.68393]
[1742400100711,0.84775801,2050.7,2050.5,4.8768]
[1742400100903,0.84775801,2050.7,2050.4,4.87703]
[1742400101104,0.84775801,2050.7,2050.5,4.8768]
[1742400101308,0.55,2050.6,2050.3,4.87724]
[1742400101472,0.55,2050.6,2050.2,0.8295]
[1742400101673,0.55,2050.6,2050.4,4.87708]
[1742400102019,5.79,2050.8,2050.5,4.87685]
[1742400102226,7.13634135,2050.8,2050.6,4.87645]
[1742400102389,6.09,2051.0,2050.9,4.8759]
[1742400102589,5.24,2051.1,2050.9,4.87577]
[1742400102802,0.55,2051.0,2050.8,4.87608]
[1742400103028,0.579,2050.9,2050.7,4.87623]
[1742400103189,0.55,2050.8,2050.7,4.87623]
[1742400103689,0.55,2050.8,2050.6,4.8766]
[1742400104287,0.55,2050.8,2050.4,0.7803]
[1742400104626,0.55,2050.8,2050.5,9.75349]
[1742400104791,1.638068,2050.8,2050.6,4.87654]
[1742400104993,1.638068,2050.8,2050.6,9.75304]
[1742400105527,5.24,2051.1,2050.4,5.65734]
[1742400105690,5.79,2051.1,2051.0,4.87567]
[1742400105892,0.55,2051.0,2050.8,4.87614]
[1742400106093,0.55,2050.7,2050.4,5.65725]
[1742400106289,6.5729,2050.7,2050.4,4.87695]
[1742400106589,17.48849533,2050.7,2050.2,9.75503]
[1742400106896,0.55,2050.5,2050.3,4.87733]
[1742400107296,0.55,2050.5,2050.4,4.87709]
[1742400107495,0.55,2050.5,2050.3,4.87733]
[1742400107700,0.55,2050.5,2050.2,4.87752]
[1742400108293,0.55,2050.5,2050.3,4.87713]
[1742400108494,1.13547074,2050.5,2050.2,4.87746]
[1742400108831,0.55,2050.3,2050.0,4.878]
[1742400108989,31.97578757,2050.3,2049.9,4.87821]
[1742400109190,5.42863,2049.8,2049.4,4.87935]
[1742400109504,5.239,2049.7,2049.5,4.87914]
[1742400109716,4.99934757,2049.6,2049.2,4.87989]
[1742400109891,4.87929,2049.5,2049.1,4.88001]
[1742400110087,3.95537876,2050.2,2049.5,4.87907]
[1742400110325,3.95537876,2050.2,2049.7,4.87862]
[1742400110326,0.55,2050.0,2049.7,4.87862]
[1742400110529,0.55,2050.0,2049.8,9.75686]
[1742400110691,0.55,2050.0,2049.6,0.7785]
[1742400110692,5.239,2050.2,2050.0,4.87804]
[1742400111187,5.789,2050.2,2050.1,4.87781]
[1742400111392,5.239,2050.2,2050.1,4.87781]
[1742400112202,5.239,2050.2,2049.9,4.87812]
[1742400112203,0.55,2050.1,2049.9,4.87812]
[1742400112392,0.55,2050.1,2049.9,4.87827]
[1742400112725,0.55,2050.1,2049.9,4.87808]
[1742400113123,7.53174,2050.2,2050.1,4.87781]
[1742400113325,5.24,2050.2,2049.9,4.87826]
[1742400113497,7.53184,2050.2,2050.0,9.75589]
[1742400113822,7.53184,2050.2,2050.0,4.8779]
[1742400114015,7.53184,2050.2,2050.1,4.87781]
[1742400114213,0.55,2050.1,2049.9,4.87816]
[1742400114444,0.55,2050.1,2050.0,4.87804]
[1742400114588,3.48911876,2050.1,2049.9,4.87821]
[1742400114795,12.81627633,2050.1,2049.7,4.87853]
[1742400115094,0.7554,2050.0,2049.7,4.87853]
[1742400115289,0.55,2049.9,2049.6,4.87899]
[1742400115495,4.99934757,2049.9,2049.6,4.87899]
[1742400115726,1.06328876,2049.8,2049.6,4.87899]
[1742400115932,1.06328876,2049.8,2049.5,4.87918]
[1742400116106,0.55,2049.7,2049.3,4.87949]
[1742400116307,0.55,2049.7,2049.4,4.87928]
[1742400116506,0.55,2049.7,2049.5,9.75821]
[1742400116708,0.55,2049.7,2049.6,4.879]
[1742400116913,5.79,2049.8,2049.7,4.87876]
[1742400117825,5.79,2049.8,2049.6,4.87883]
[1742400118047,0.55,2049.7,2049.2,0.7987]
[1742400118251,0.55,2049.7,2049.4,4.87939]
[1742400118551,0.55,2049.7,2049.5,4.87902]
[1742400118751,0.55,2049.7,2049.4,4.87939]
[1742400118914,0.55,2049.7,2049.4,4.87934]
[1742400119114,1.1810995,2049.6,2049.4,4.87932]
[1742400119345,0.55,2049.7,2049.5,4.87912]
[1742400120550,6.382345,2049.8,2049.6,4.87897]
[1742400120747,11.78358,2050.0,2049.6,4.87897]
[1742400120748,6.9054,2050.0,2049.6,4.87897]
[1742400120952,6.15,2050.0,2049.9,4.87828]
[1742400122063,6.15,2050.0,2049.8,9.75685]
[1742400122261,6.15,2050.0,2049.9,4.87828]
[1742400122766,6.15,2050.0,2049.8,4.87842]
[1742400122937,6.765,2050.0,2049.8,4.87842]
[1742400123379,6.765,2050.0,2049.9,4.87828]
[1742400123677,6.765,2050.0,2049.7,4.87875]
[1742400123864,6.765,2050.0,2049.7,4.87861]
[1742400124062,10.65306757,2049.9,2049.5,4.8792]
[1742400124278,6.62041676,2049.8,2049.4,4.87941]
[1742400124481,1.74180676,2049.8,2049.5,4.87907]
[1742400124984,1.74180676,2049.8,2049.6,4.87889]
[1742400125186,1.74180676,2049.8,2049.2,5.63435]
[1742400125339,1.74180676,2049.8,2049.4,4.87945]
[1742400125682,0.55,2049.6,2049.1,4.88003]
[1742400125840,4.87931,2049.5,2049.2,4.87987]
[1742400126171,4.87931,2049.5,2049.1,4.88003]
[1742400126172,0.55,2049.4,2049.1,4.88003]
[1742400126374,0.55,2049.4,2049.2,4.87986]
[1742400126541,0.55,2049.4,2049.1,4.88003]
[1742400126744,2.104933,2049.4,2049.1,9.76009]
[1742400126977,4.87979,2049.3,2048.9,4.88052]
[1742400127188,5.65149,2049.3,2049.0,4.88041]
[1742400127478,5.43005,2049.2,2048.8,4.88082]
[1742400127681,5.43005,2049.2,2048.9,4.88065]
[1742400127881,1.108154,2049.1,2048.9,4.88065]
[1742400128054,1.108154,2049.1,2049.0,4.88042]
[1742400128382,0.55,2049.5,2048.7,3.7941]
[1742400128543,4.87952,2049.4,2049.1,4.88007]
[1742400128738,0.55,2049.3,2049.0,4.88036]
[1742400129052,5.973002,2049.2,2048.7,0.7941]
[1742400129258,9.76067,2049.1,2048.7,5.67512]
[1742400129457,4.88045,2049.0,2048.6,5.091355]
[1742400129786,4.88068,2048.9,2048.6,0.209985]
[1742400130078,5.43099,2048.8,2048.6,0.209985]
[1742400130290,0.624279,2048.7,2048.6,0.209985]
[1742400130583,5.241,2048.8,2048.6,5.091365]
[1742400130765,16.868,2048.9,2048.8,4.8809]
[1742400131167,6.15,2049.4,2048.6,0.209985]
[1742400131370,10.9257,2049.5,2049.1,4.88004]
[1742400131689,6.0463,2049.5,2049.3,4.87959]
[1742400131846,16.868,2049.6,2049.4,4.87947]
[1742400132060,19.76421317,2049.6,2049.3,4.8796]
[1742400132258,19.76421317,2049.6,2049.4,4.87939]
[1742400132792,19.76421317,2049.6,2049.4,4.87934]
[1742400133095,16.868,2049.6,2049.5,7.87923]
[1742400134499,16.869,2050.2,2050.0,4.87804]
[1742400135014,16.869,2050.2,2050.0,3.0]
[1742400135175,16.869,2050.2,2050.0,7.87804]
[1742400135494,19.01092219,2050.2,2050.1,4.87781]
[1742400135685,19.01092219,2050.2,2050.0,7.87804]
[1742400135899,16.869,2050.2,2050.1,4.87781]
[1742400136216,16.869,2050.2,2050.1,7.87781]
[1742400137299,21.74657,2050.2,2050.1,3.0]
[1742400137621,16.869,2050.2,2049.8,7.87839]
[1742400137785,9.32718757,2050.1,2049.8,3.0]
[1742400138114,0.7653,2049.9,2049.7,3.0]
[1742400138483,5.791,2050.0,2049.9,3.0]
[1742400138913,10.66921,2050.0,2049.5,4.87905]
[1742400139100,5.241,2050.0,2049.7,3.0]
[1742400139306,17.6821,2050.2,2049.9,4.87828]
[1742400139486,5.24,2050.1,2050.0,4.87796]
[1742400139691,5.24,2050.1,2049.9,4.87813]
[1742400139896,5.24,2050.1,2049.9,7.87813]
[1742400140431,0.55,2050.0,2049.9,3.0]
[1742400140725,8.70797376,2050.0,2049.9,3.0]
[1742400141137,5.42861,2049.8,2049.5,6.12]
[1742400141292,9.32771757,2049.9,2049.5,3.0]
[1742400141494,0.7859,2049.7,2049.4,4.87938]
[1742400141691,0.7859,2049.7,2049.3,4.87953]
[1742400141692,4.87902,2049.6,2049.3,4.87953]
[1742400142012,1.633369,2049.6,2049.3,9.7591]
[1742400142222,1.633369,2049.6,2049.4,4.87946]
[1742400142431,1.633369,2049.6,2049.4,4.87936]
[1742400142597,1.633369,2049.6,2049.4,4.87927]
[1742400142797,5.24,2049.9,2049.8,4.87852]
[1742400143200,5.24,2049.9,2049.7,4.87868]
[1742400143399,5.24,2049.9,2049.7,7.87868]
[1742400143600,5.24,2049.9,2049.8,7.87852]
[1742400143935,6.15,2050.1,2049.8,4.87846]
[1742400144137,3.392247,2050.0,2049.8,4.87852]
[1742400144432,6.15,2050.1,2049.8,4.87852]
[1742400144646,11.02782,2050.1,2049.7,4.87873]
[1742400144948,11.02782,2050.1,2049.8,3.0]
[1742400145304,9.75636,2050.0,2049.7,3.0]
[1742400145648,5.79,2049.9,2049.6,7.8789]
[1742400145833,5.79,2049.9,2049.6,7.87889]
[1742400146027,9.54123076,2049.9,2049.8,4.87852]
[1742400146347,5.24,2049.9,2049.7,4.87871]
[1742400146647,5.24,2049.9,2049.8,7.87852]
[1742400147355,5.24,2049.9,2049.6,4.87899]
[1742400147528,5.24,2049.9,2049.7,3.0]
[1742400147866,3.14344976,2049.8,2049.6,3.0]
[1742400148043,3.14344976,2049.8,2049.6,7.8789]
[1742400148241,3.14344976,2049.8,2049.6,3.0]
[1742400148757,3.14344976,2049.8,2049.6,7.87899]
[1742400148954,3.14344976,2049.8,2049.6,3.0]
[1742400149318,8.02210976,2049.8,2049.5,3.0]
[1742400149652,4.87909,2049.6,2049.3,4.87968]
[1742400149858,6.99095098,2049.7,2049.4,3.0]
[1742400150317,1.32621098,2049.7,2049.5,4.87909]
[1742400150518,5.24,2049.9,2049.6,4.87884]
[1742400150719,16.867,2050.0,2049.9,4.87828]
[1742400151045,22.107,2050.0,2049.9,4.87828]
[1742400151220,22.107,2050.0,2049.8,9.7568]
[1742400151559,0.99934515,2051.1,2050.0,0.8085]
[1742400151718,6.09,2050.8,2050.7,4.87638]
[1742400151919,0.70893451,2051.0,2050.4,0.7845]
[1742400152123,4.8765,2050.7,2050.4,3.0]
[1742400152356,4.87674,2050.6,2050.3,3.0]
[1742400152518,5.888644,2050.5,2050.1,3.7845]
[1742400152720,1.011674,2050.5,2050.3,4.87721]
[1742400153041,1.011674,2050.5,2050.1,0.7845]
[1742400153042,4.87724,2050.4,2050.1,7.8778]
[1742400153238,4.87724,2050.4,2050.1,3.0]
[1742400153760,4.87724,2050.4,2050.1,7.87779]
[1742400153916,4.87724,2050.4,2049.9,5.71105]
[1742400153917,17.878674,2050.5,2049.9,0.8328]
[1742400154118,17.87220949,2050.5,2050.2,4.8775]
[1742400154319,5.42726,2050.4,2050.1,3.0]
[1742400154518,9.87660757,2050.4,2050.1,3.0]
[1742400154753,9.87660757,2050.4,2050.1,4.87771]
[1742400154754,5.239,2050.3,2050.1,4.87771]
[1742400154958,5.239,2050.3,2050.2,3.0]
[1742400155720,11.93538405,2050.3,2049.9,4.87827]
[1742400155946,7.05805405,2050.3,2050.0,7.87802]
[1742400156148,7.05805405,2050.3,2050.0,12.75589]
[1742400156453,7.05805405,2050.3,2050.1,4.87764]
[1742400156626,5.239,2050.3,2050.2,7.87757]
[1742400157476,16.867,2050.5,2050.2,7.87757]
[1742400157635,16.867,2050.5,2050.4,4.87709]
[1742400158176,16.867,2050.5,2050.4,7.87709]
[1742400158935,16.867,2050.5,2050.4,3.0]
[1742400159356,19.56525,2050.5,2050.4,3.0]
[1742400159675,24.4421,2050.5,2050.2,3.0]
[1742400159970,24.4421,2050.5,2050.2,7.87748]
[1742400160345,19.56525,2050.5,2050.2,7.87748]
[1742400160547,19.56525,2050.5,2050.2,12.75489]
[1742400160776,19.56525,2050.5,2050.3,4.87731]
[1742400161073,16.867,2050.5,2050.4,7.87709]
[1742400164039,0.55,2050.2,2050.0,4.87795]
[1742400164382,7.37585288,2050.2,2049.9,3.0]
[1742400164564,2.49818288,2050.2,2049.9,7.87828]
[1742400165068,7.37591288,2050.2,2049.6,0.7509]
[1742400165279,4.87781,2050.1,2049.8,3.0]
[1742400165451,6.82591288,2050.2,2049.8,7.87836]
[1742400165866,6.82591288,2050.2,2049.8,4.87836]
[1742400166078,6.63442129,2050.1,2049.7,9.75723]
[1742400166279,11.51246129,2050.1,2049.7,4.87858]
[1742400166669,6.63442129,2050.1,2049.7,9.75719]
[1742400166861,0.55,2049.9,2049.7,3.0]
[1742400167063,5.788,2049.9,2049.7,3.0]
[1742400168078,5.238,2049.9,2049.8,4.87852]
[1742400168372,5.64295,2050.6,2050.2,4.87748]
[1742400168575,5.238,2050.4,2050.2,4.87748]
[1742400169657,5.238,2050.4,2050.3,4.87733]
[1742400169860,10.53934757,2050.9,2050.4,4.87709]
[1742400170096,5.239,2050.6,2050.4,4.87709]
[1742400170462,6.09,2050.9,2050.4,7.87709]
[1742400170797,6.09,2050.9,2050.8,4.87614]
[1742400171097,22.103,2051.1,2050.8,4.876]
[1742400171295,4.87631,2050.8,2050.4,4.877]
[1742400171596,4.87641,2050.7,2050.4,4.87705]
[1742400172000,4.87615,2050.8,2050.4,9.75401]
[1742400172298,6.763208,2050.7,2050.4,4.87696]
[1742400172465,6.763208,2050.7,2050.4,4.87691]
[1742400172810,5.788,2050.7,2050.4,4.87691]
[1742400172961,4.87667,2050.6,2050.3,7.87731]
[1742400173161,4.87667,2050.6,2050.2,4.87756]
[1742400173162,9.75342,2050.6,2050.2,4.87756]
[1742400173362,5.42685,2050.5,2050.1,9.75543]
[1742400173563,10.1144,2050.7,2050.4,4.87701]
[1742400173786,1.57741,2050.6,2050.4,9.75392]
[1742400173996,5.238,2050.7,2050.5,4.87677]
[1742400174693,5.238,2050.7,2050.3,4.87724]
[1742400174694,0.55,2050.6,2050.3,4.87724]
[1742400174895,6.23207,2050.6,2050.2,3.0]
[1742400175066,9.32635757,2050.5,2050.2,4.87753]
[1742400175394,0.8054,2050.6,2050.4,4.87699]
[1742400175697,5.238,2050.5,2050.4,4.87699]
[1742400176203,5.238,2050.5,2050.3,4.87732]
[1742400176357,6.329982,2050.5,2050.2,4.87756]
[1742400176560,6.329982,2050.5,2049.9,10.99807]
[1742400176911,5.238,2050.5,2050.3,4.87713]
[1742400177804,5.238,2050.5,2050.2,3.0]
[1742400177967,10.11497,2050.5,2050.1,4.87762]
[1742400178289,10.11497,2050.5,2050.2,3.0]
[1742400179003,10.11497,2050.5,2050.2,7.87755]
[1742400179219,12.13959876,2050.5,2050.2,7.87755]
[1742400179706,7.26262876,2050.5,2050.2,12.7551]
[1742400179874,16.863,2050.6,2050.3,3.7885]
[1742400180071,16.863,2050.6,2050.5,4.87685]
[1742400180378,16.863,2050.6,2050.5,7.87685]
[1742400180774,0.8032,2051.3,2050.6,3.7885]
[1742400180978,7.66292776,2051.3,2050.9,4.87567]
[1742400181186,7.66292776,2051.3,2050.8,3.0]
[1742400181187,4.87531,2051.2,2050.8,3.0]
[1742400181501,4.87531,2051.2,2050.7,4.87619]
[1742400181502,0.7501,2050.9,2050.7,3.0]
[1742400181800,5.238,2050.8,2050.7,3.0]
[1742400182003,5.238,2050.8,2050.5,4.87669]
[1742400182199,6.324401,2050.8,2050.6,4.87651]
[1742400182400,5.238,2050.9,2050.6,4.87648]